bitfinex/quotes_BTCUSD_20240810
["timestamp","ask_amount","ask_price","bid_price","bid_amount"]
[1723253017468,0.000832,60752.0,60751.0,0.68252364]
[1723253019396,0.000832,60752.0,60751.0,0.78237682]
[1723253019574,0.000832,60752.0,60751.0,0.68252364]
[1723253020898,0.000832,60752.0,60751.0,0.78218714]
[1723253021206,0.000832,60752.0,60751.0,0.68252364]
[1723253021663,0.000832,60752.0,60751.0,0.7818038]
[1723253022069,0.000832,60752.0,60751.0,0.2879858]
[1723253022314,0.000832,60752.0,60751.0,0.18870564]
[1723253022524,0.000832,60752.0,60751.0,0.02720416]
[1723253023087,0.000832,60752.0,60751.0,0.33201016]
[1723253023283,0.000832,60752.0,60751.0,0.92439563]
[1723253024937,0.000832,60752.0,60751.0,0.92483382]
[1723253026003,0.000832,60752.0,60751.0,0.82503708]
[1723253026206,0.000832,60752.0,60751.0,0.9880132]
[1723253027447,0.000832,60752.0,60751.0,1.3272252]
[1723253027646,0.000832,60752.0,60751.0,1.77511665]
[1723253027861,0.000832,60752.0,60751.0,1.6764372]
[1723253028063,0.000832,60752.0,60751.0,1.6784372]
[1723253028200,0.000832,60752.0,60751.0,1.6684372]
[1723253028406,0.000832,60752.0,60751.0,1.6584372]
[1723253028608,0.000832,60752.0,60751.0,1.6724372]
[1723253028810,0.000832,60752.0,60751.0,1.85455029]
[1723253029254,0.000832,60752.0,60751.0,1.84055029]
[1723253029458,0.000832,60752.0,60751.0,1.83855029]
[1723253029707,0.000832,60752.0,60751.0,1.85455029]
[1723253029847,0.000832,60752.0,60751.0,1.6724372]
[1723253030053,0.000832,60752.0,60751.0,1.77219762]
[1723253030252,0.000832,60752.0,60751.0,1.78619762]
[1723253030487,0.000832,60752.0,60751.0,1.77219762]
[1723253031142,0.000832,60752.0,60751.0,1.89543466]
[1723253031701,0.000832,60752.0,60751.0,1.8405217]
[1723253031902,0.000832,60752.0,60751.0,1.8265217]
[1723253032124,0.000832,60752.0,60751.0,1.75819762]
[1723253032245,0.000832,60752.0,60751.0,1.82652044]
[1723253032461,0.000832,60752.0,60751.0,1.82651845]
[1723253032668,0.000832,60752.0,60751.0,1.77219563]
[1723253033090,0.000832,60752.0,60751.0,1.89541645]
[1723253033307,0.000832,60752.0,60751.0,1.90941645]
[1723253033738,0.000832,60752.0,60751.0,1.78619563]
[1723253033903,0.000832,60752.0,60751.0,1.77219563]
[1723253034105,0.000832,60752.0,60751.0,1.75819563]
[1723253034343,0.000832,60752.0,60751.0,1.78619563]
[1723253034761,0.000832,60752.0,60751.0,1.77219563]
[1723253034918,0.000832,60752.0,60751.0,1.78619563]
[1723253036091,0.000832,60752.0,60751.0,1.90739171]
[1723253038188,0.000832,60752.0,60751.0,1.90939171]
[1723253039167,0.000832,60752.0,60751.0,1.90938708]
[1723253040636,0.000832,60752.0,60751.0,1.91029381]
[1723253041012,0.000832,60752.0,60751.0,1.76710236]
[1723253041332,0.000832,60752.0,60751.0,1.86566519]
[1723253041959,0.000832,60752.0,60751.0,1.88566519]
[1723253042372,0.000832,60752.0,60751.0,1.88566618]
[1723253043314,0.000832,60752.0,60751.0,1.86566618]
[1723253043552,0.000832,60752.0,60751.0,1.86635398]
[1723253044248,0.000832,60752.0,60751.0,1.88635398]
[1723253045890,0.000832,60752.0,60751.0,1.88435398]
[1723253046093,0.000832,60752.0,60751.0,1.80105398]
[1723253047150,0.000832,60752.0,60751.0,1.80104987]
[1723253047590,0.000832,60752.0,60751.0,1.70249016]
[1723253047766,0.000832,60752.0,60751.0,1.81440641]
[1723253048121,0.000832,60752.0,60751.0,1.86368646]
[1723253049049,0.000832,60752.0,60751.0,1.87368646]
[1723253049253,0.000832,60752.0,60751.0,1.88368646]
[1723253049892,0.000832,60752.0,60751.0,1.90832649]
[1723253052140,0.000832,60752.0,60751.0,1.80755728]
[1723253052347,0.000832,60752.0,60751.0,1.90838642]
[1723253054304,0.000832,60752.0,60751.0,1.83446634]
[1723253055057,0.000832,60752.0,60751.0,1.81446634]
[1723253055476,0.000832,60752.0,60751.0,1.83446634]
[1723253056306,0.000832,60752.0,60751.0,1.93302605]
[1723253056932,0.000832,60752.0,60751.0,1.93502605]
[1723253058961,0.000832,60752.0,60751.0,2.32723805]
[1723253059165,0.000832,60752.0,60751.0,3.29403796]
[1723253059411,0.000832,60752.0,60751.0,3.47233232]
[1723253059611,0.000832,60752.0,60751.0,3.58324996]
[1723253060391,0.000832,60752.0,60751.0,3.56924996]
[1723253060590,0.000832,60752.0,60751.0,3.58324996]
[1723253060725,0.000832,60752.0,60751.0,3.55524996]
[1723253061076,0.000832,60752.0,60751.0,3.56924996]
[1723253061226,0.000832,60752.0,60751.0,3.58324996]
[1723253061653,0.000832,60752.0,60751.0,3.55524996]
[1723253061862,0.000832,60752.0,60751.0,3.58324996]
[1723253062071,0.000832,60752.0,60751.0,3.67173653]
[1723253062220,0.000832,60752.0,60751.0,3.78735093]
[1723253062422,0.000832,60752.0,60751.0,3.77335093]
[1723253062775,0.000832,60752.0,60751.0,3.67171402]
[1723253063319,0.000832,60752.0,60751.0,3.56924996]
[1723253063732,0.000832,60752.0,60751.0,3.38125071]
[1723253063940,0.000832,60752.0,60751.0,3.63934076]
[1723253064211,0.000832,60752.0,60751.0,3.71944685]
[1723253064396,0.000832,60770.0,60769.0,1.439602]
[1723253064552,0.000832,60770.0,60769.0,1.742201]
[1723253064769,0.000832,60770.0,60769.0,1.8406223]
[1723253065138,0.000832,60770.0,60769.0,1.84669531]
[1723253065631,0.000832,60770.0,60769.0,1.74914412]
[1723253066052,0.000832,60770.0,60769.0,1.84753143]
[1723253066230,0.000832,60770.0,60769.0,1.8615066]
[1723253066606,0.000832,60770.0,60769.0,1.76314412]
[1723253067013,0.000832,60770.0,60769.0,1.77714412]
[1723253067361,0.000832,60770.0,60769.0,1.88509416]
[1723253067768,0.000832,60770.0,60769.0,2.21420916]
[1723253067921,0.000832,60770.0,60769.0,2.18620916]
[1723253068123,0.000832,60770.0,60769.0,2.20020916]
[1723253068328,0.000832,60770.0,60769.0,2.21420916]
[1723253069145,0.000832,60770.0,60769.0,2.1158799]
[1723253069780,0.000832,60770.0,60769.0,2.1018799]
[1723253070167,0.000832,60770.0,60769.0,2.18959937]
[1723253071027,0.000832,60770.0,60769.0,2.94959937]
[1723253071273,0.000832,60770.0,60769.0,2.40978437]
[1723253071494,0.000832,60770.0,60769.0,1.66309242]
[1723253071682,0.000832,60770.0,60769.0,0.9965142]
[1723253071841,0.000832,60770.0,60769.0,0.8943285]
[1723253072044,0.000832,60770.0,60769.0,0.5652135]
[1723253072696,0.000832,60770.0,60769.0,0.8943285]
[1723253072852,0.000832,60770.0,60769.0,0.5652135]
[1723253073610,0.141632,60770.0,60769.0,0.2360985]
[1723253073811,0.141632,60770.0,60769.0,0.2080985]
[1723253074037,0.141632,60770.0,60769.0,0.5372135]
[1723253074433,0.141632,60770.0,60769.0,0.2210985]
[1723253074591,0.141632,60770.0,60769.0,0.0575415]
[1723253075097,0.141632,60770.0,60769.0,0.2210985]
[1723253075487,0.141632,60770.0,60769.0,0.2350985]
[1723253075628,0.141632,60770.0,60769.0,0.5642135]
[1723253076728,0.141632,60770.0,60769.0,0.5512135]
[1723253077164,0.141632,60770.0,60769.0,0.5642135]
[1723253077365,0.141632,60770.0,60769.0,0.5502135]
[1723253077689,0.141632,60770.0,60769.0,0.5642135]
[1723253077894,0.141632,60770.0,60769.0,0.8933285]
[1723253078545,0.062832,60770.0,60769.0,0.8933285]
[1723253080581,0.062832,60770.0,60769.0,0.9949285]
[1723253081430,0.062832,60770.0,60769.0,0.99492886]
[1723253081629,0.000832,60770.0,60769.0,1.66045878]
[1723253081977,0.000832,60770.0,60769.0,1.66245878]
[1723253082159,0.000832,60770.0,60769.0,1.73625982]
[1723253082545,0.000832,60770.0,60769.0,1.66245878]
[1723253082751,0.000832,60770.0,60769.0,1.73624258]
[1723253082944,0.000832,60770.0,60769.0,1.66245878]
[1723253083307,0.000832,60770.0,60769.0,1.64945878]
[1723253083689,0.000832,60770.0,60769.0,1.71164408]
[1723253083887,0.000832,60770.0,60769.0,1.59704417]
[1723253084087,0.000832,60770.0,60769.0,1.68450311]
[1723253084314,0.000832,60770.0,60769.0,1.73709599]
[1723253084851,0.000832,60770.0,60769.0,2.05221099]
[1723253085277,0.000832,60770.0,60769.0,2.06621099]
[1723253085483,0.000832,60770.0,60769.0,1.96475205]
[1723253086005,0.000832,60770.0,60769.0,1.89097342]
[1723253086142,0.000832,60770.0,60769.0,2.69097342]
[1723253086530,0.000832,60770.0,60769.0,2.7647407]
[1723253087508,0.000832,60770.0,60769.0,2.75927315]
[1723253087648,0.000832,60770.0,60769.0,1.95927315]
[1723253088939,0.000832,60770.0,60769.0,1.95927156]
[1723253089139,0.000832,60770.0,60769.0,1.95927155]
[1723253089597,0.000832,60770.0,60769.0,2.05762626]
[1723253090171,0.000832,60770.0,60769.0,2.60927155]
[1723253092483,0.000832,60770.0,60769.0,2.70927155]
[1723253093135,0.000832,60770.0,60769.0,3.03838655]
[1723253093814,0.000832,60770.0,60769.0,3.15068655]
[1723253094250,0.000832,60770.0,60769.0,3.18068308]
[1723253095323,0.000832,60770.0,60769.0,0.64747301]
[1723253095324,1.56552792,60770.0,60769.0,0.64747301]
[1723253095539,0.598489,60767.0,60766.0,0.14748207]
[1723253095710,1.60840238,60767.0,60766.0,0.11818207]
[1723253095909,0.898382,60762.0,60761.0,0.2177665]
[1723253096123,1.52664992,60762.0,60761.0,0.2177665]
[1723253096274,1.95580292,60762.0,60761.0,0.2177665]
[1723253096450,1.62664992,60762.0,60761.0,0.2177665]
[1723253097786,1.79564992,60762.0,60761.0,0.2177665]
[1723253100024,1.79564992,60762.0,60751.0,0.0009152]
[1723253100025,0.569301,60753.0,60751.0,0.0009152]
[1723253100474,0.898502,60753.0,60751.0,0.0009152]
[1723253101231,0.570301,60753.0,60752.0,0.0099152]
[1723253101440,0.2421,60753.0,60752.0,0.0199152]
[1723253101734,0.571301,60753.0,60752.0,0.04473819]
[1723253101926,0.900502,60753.0,60752.0,0.02490207]
[1723253102105,0.900502,60753.0,60752.0,0.0199152]
[1723253102505,0.898502,60753.0,60752.0,0.0009152]
[1723253102708,0.898502,60753.0,60752.0,0.0019152]
[1723253102709,0.569301,60753.0,60752.0,0.0019152]
[1723253103501,0.569301,60753.0,60752.0,0.0009152]
[1723253103885,0.569301,60753.0,60752.0,0.0019152]
[1723253104101,0.2401,60753.0,60752.0,0.0049152]
[1723253104298,0.0755,60753.0,60752.0,0.02823789]
[1723253104557,0.2401,60753.0,60752.0,0.02823789]
[1723253104714,0.2401,60753.0,60752.0,0.02523789]
[1723253105128,0.569301,60753.0,60752.0,0.02823789]
[1723253105334,0.569301,60753.0,60752.0,0.0049152]
[1723253105550,0.569301,60753.0,60752.0,0.0009152]
[1723253105971,0.570301,60753.0,60752.0,0.0109152]
[1723253111416,0.899502,60753.0,60752.0,0.0109152]
[1723253111622,0.570301,60753.0,60752.0,0.0109152]
[1723253112245,0.898502,60753.0,60752.0,0.0049152]
[1723253112401,0.898502,60753.0,60752.0,0.0009152]
[1723253112879,0.569301,60753.0,60752.0,0.0049152]
[1723253113055,0.569301,60753.0,60752.0,0.00599136]
[1723253113438,0.569301,60753.0,60752.0,0.00999136]
[1723253113756,0.570301,60753.0,60752.0,0.0069152]
[1723253113996,0.570301,60753.0,60752.0,0.03052728]
[1723253114172,0.569301,60753.0,60752.0,0.00999136]
[1723253114375,0.569301,60753.0,60752.0,0.00599136]
[1723253114578,0.570301,60753.0,60752.0,0.01199136]
[1723253114995,0.569301,60753.0,60752.0,0.00599136]
[1723253115333,0.570301,60753.0,60752.0,0.01199136]
[1723253115670,0.570301,60753.0,60752.0,0.01599136]
[1723253116116,0.570301,60753.0,60752.0,0.01199136]
[1723253116322,0.570301,60753.0,60752.0,0.0109152]
[1723253116697,0.494801,60753.0,60752.0,0.0109152]
[1723253117098,0.494801,60753.0,60752.0,0.01940972]
[1723253117306,0.494801,60753.0,60752.0,0.02448817]
[1723253120082,0.1656,60753.0,60752.0,0.02448817]
[1723253120298,0.494801,60753.0,60752.0,0.02448817]
[1723253120870,0.001,60753.0,60752.0,0.02448817]
[1723253121041,0.1656,60753.0,60752.0,0.02448817]
[1723253121732,0.001,60753.0,60752.0,0.02448817]
[1723253122523,0.001,60753.0,60752.0,0.01599365]
[1723253125617,0.1656,60753.0,60752.0,0.01599365]
[1723253126505,0.001,60753.0,60752.0,0.01599365]
[1723253126958,0.001,60753.0,60752.0,0.58990365]
[1723253127161,0.001,60753.0,60752.0,1.26792557]
[1723253127368,0.001,60753.0,60752.0,1.84730813]
[1723253127572,0.001,60753.0,60752.0,1.84930813]
[1723253128243,0.001,60753.0,60752.0,1.70480813]
[1723253128431,0.084032,60766.0,60752.0,1.70480813]
[1723253128432,0.164577,60762.0,60757.0,0.164589]
[1723253128637,0.084032,60766.0,60758.0,0.07026905]
[1723253128793,0.164572,60764.0,60759.0,0.164584]
[1723253128997,0.164572,60764.0,60758.0,0.00503647]
[1723253128998,0.164572,60764.0,60760.0,0.164581]
[1723253129152,0.248599,60766.0,60760.0,0.164581]
[1723253129353,0.329153,60762.0,60761.0,0.00503647]
[1723253129619,0.606229,60762.0,60761.0,0.00503647]
[1723253129793,0.164588,60758.0,60754.0,0.164596]
[1723253129972,0.164583,60760.0,60755.0,0.26182986]
[1723253130183,0.000832,60766.0,60756.0,0.1426]
[1723253130524,0.000832,60766.0,60761.0,0.164578]
[1723253130732,0.000832,60766.0,60760.0,0.41100846]
[1723253130733,0.164571,60764.0,60760.0,0.16458]
[1723253130924,0.1654,60766.0,60760.0,0.16458]
[1723253131127,0.1654,60766.0,60761.0,0.23425007]
[1723253131128,0.164569,60765.0,60761.0,0.23425007]
[1723253131489,0.000832,60766.0,60761.0,0.06967207]
[1723253131669,0.000832,60766.0,60763.0,0.0801]
[1723253131889,0.000832,60766.0,60765.0,0.164568]
[1723253132295,0.000832,60766.0,60765.0,0.227068]
[1723253132500,0.000832,60766.0,60765.0,0.27067762]
[1723253133464,0.000832,60766.0,60765.0,0.59981362]
[1723253133599,0.001832,60766.0,60765.0,0.60581362]
[1723253134003,0.001832,60766.0,60765.0,0.60781362]
[1723253134357,0.002832,60766.0,60765.0,0.61481362]
[1723253134565,0.002832,60766.0,60765.0,0.27767762]
[1723253134905,1.02364292,60766.0,60765.0,0.01203647]
[1723253135109,1.70590492,60766.0,60765.0,0.018]
[1723253135289,2.13403592,60766.0,60765.0,0.011]
[1723253136941,0.904402,60753.0,60752.0,0.0009152]
[1723253139210,0.904402,60753.0,60752.0,0.0059152]
[1723253139617,0.493801,60753.0,60752.0,0.0059152]
[1723253139997,0.1646,60753.0,60752.0,0.01097122]
[1723253140342,0.329186,60756.0,60752.0,0.01097122]
[1723253140343,0.164598,60754.0,60753.0,0.0664]
[1723253140691,0.164598,60754.0,60753.0,0.07147816]
[1723253140692,0.493794,60754.0,60753.0,0.07147816]
[1723253140941,1.152186,60754.0,60753.0,0.00507816]
[1723253141117,0.493801,60753.0,60752.0,0.0059152]
[1723253142067,0.493801,60753.0,60752.0,0.03043132]
[1723253142068,0.1646,60753.0,60752.0,0.03043132]
[1723253142267,0.1656,60753.0,60752.0,0.01199481]
[1723253143151,0.001,60753.0,60752.0,0.01199481]
[1723253143358,0.001,60753.0,60752.0,0.09249481]
[1723253143504,0.001,60753.0,60752.0,0.25309781]
[1723253143700,0.001,60753.0,60752.0,0.58230481]
[1723253143907,0.001,60753.0,60752.0,0.69410514]
[1723253144112,0.01079707,60766.0,60754.0,0.0765]
[1723253144313,0.164569,60765.0,60761.0,0.164579]
[1723253144525,0.01079707,60766.0,60762.0,0.0608]
[1723253144912,0.164571,60764.0,60763.0,0.0631051]
[1723253145169,0.493713,60764.0,60763.0,0.00507921]
[1723253145412,0.000832,60766.0,60762.0,0.0608]
[1723253145413,0.49372,60763.0,60762.0,0.0608]
[1723253145879,0.49372,60763.0,60762.0,0.00507921]
[1723253146244,0.001832,60766.0,60754.0,0.0765]
[1723253146245,0.164589,60758.0,60754.0,0.0765]
[1723253146466,0.329163,60760.0,60754.0,0.15056659]
[1723253146669,0.164586,60759.0,60755.0,0.164594]
[1723253146991,0.164582,60760.0,60755.0,0.164594]
[1723253147209,0.0777,60762.0,60756.0,0.16459]
[1723253147210,0.164578,60762.0,60756.0,0.16459]
[1723253147391,0.329151,60763.0,60757.0,0.16459]
[1723253147599,0.16458,60761.0,60758.0,0.01957769]
[1723253149048,0.16458,60761.0,60758.0,0.02257769]
[1723253149285,0.329151,60763.0,60758.0,0.02257769]
[1723253149496,0.164581,60761.0,60758.0,0.02257769]
[1723253149860,0.164581,60761.0,60758.0,0.02457769]
[1723253150072,0.164581,60761.0,60759.0,0.06689223]
[1723253150275,0.164581,60760.0,60759.0,0.06689223]
[1723253151127,0.164579,60761.0,60759.0,0.06689223]
[1723253151333,0.329967,60766.0,60759.0,0.06689223]
[1723253151537,0.000832,60766.0,60760.0,0.1373]
[1723253151734,0.000832,60766.0,60761.0,0.329156]
[1723253151977,0.000832,60766.0,60763.0,0.164572]
[1723253152271,0.000832,60766.0,60763.0,0.0765]
[1723253152462,0.000832,60766.0,60765.0,0.493704]
[1723253152463,0.002832,60766.0,60765.0,0.493704]
[1723253152656,0.002832,60766.0,60765.0,0.987706]
[1723253153156,0.002832,60766.0,60765.0,1.15152092]
[1723253153305,0.006832,60766.0,60765.0,1.54145692]
[1723253153498,0.37830079,60785.0,60765.0,1.55145692]
[1723253153743,0.164522,60782.0,60779.0,0.0608]
[1723253153940,0.164522,60782.0,60780.0,0.0466379]
[1723253154100,0.36696479,60785.0,60780.0,0.0466379]
[1723253154299,0.33864508,60785.0,60780.0,0.0466379]
[1723253154495,0.329034,60784.0,60780.0,0.0466379]
[1723253154702,0.493582,60780.0,60779.0,0.0608]
[1723253155319,0.329072,60777.0,60770.0,0.1373]
[1723253155518,0.329077,60776.0,60770.0,0.1373]
[1723253155754,0.0777,60779.0,60771.0,0.16455]
[1723253155940,0.164541,60775.0,60770.0,0.1373]
[1723253156143,0.164546,60774.0,60771.0,0.0630971]
[1723253156342,0.164544,60774.0,60770.0,0.1373]
[1723253156526,0.493621,60776.0,60770.0,0.301853]
[1723253156927,0.16454,60776.0,60770.0,0.1373]
[1723253157143,0.001,60776.0,60772.0,0.164548]
[1723253157665,0.164541,60775.0,60770.0,0.1373]
[1723253158015,0.001,60776.0,60771.0,0.2111928]
[1723253158216,0.001,60776.0,60772.0,0.006]
[1723253158692,0.329072,60777.0,60771.0,0.2111928]
[1723253159072,0.329055,60780.0,60774.0,0.0807]
[1723253159253,0.164526,60781.0,60775.0,0.21039812]
[1723253159454,0.49191074,60788.0,60775.0,0.21039812]
[1723253159455,0.164527,60780.0,60776.0,0.06]
[1723253159686,0.164524,60782.0,60777.0,0.164534]
[1723253160058,0.164525,60781.0,60776.0,0.06]
[1723253160257,0.164532,60779.0,60776.0,0.06]
[1723253160459,0.164535,60778.0,60776.0,0.07957769]
[1723253160696,0.164535,60777.0,60776.0,0.07957769]
[1723253161054,0.164528,60780.0,60776.0,0.07957769]
[1723253161243,0.16453,60779.0,60776.0,0.07957769]
[1723253161598,0.16453,60779.0,60777.0,0.00503075]
[1723253161906,0.16453,60779.0,60778.0,0.03757056]
[1723253162500,0.16453,60779.0,60778.0,0.04260131]
[1723253164083,0.164526,60781.0,60778.0,0.04560131]
[1723253164323,0.164525,60781.0,60778.0,0.04560131]
[1723253164512,0.164525,60781.0,60779.0,0.07453601]
[1723253164711,0.493569,60782.0,60779.0,0.07453601]
[1723253164914,0.329036,60784.0,60780.0,0.0799]
[1723253165125,0.164527,60780.0,60779.0,0.00499343]
[1723253165296,0.164535,60777.0,60776.0,0.15947769]
[1723253166847,0.164535,60777.0,60776.0,0.16447769]
[1723253168077,0.164535,60777.0,60776.0,0.16539289]
[1723253168265,0.822677,60777.0,60776.0,0.0659152]
[1723253168457,0.822677,60777.0,60776.0,0.0009152]
[1723253168876,0.822677,60777.0,60776.0,0.0059152]
[1723253169121,0.822677,60777.0,60776.0,0.0079152]
[1723253169669,0.822677,60777.0,60776.0,0.0129152]
[1723253169904,0.822677,60777.0,60776.0,0.0009152]
[1723253170210,0.823677,60777.0,60776.0,0.0009152]
[1723253170411,0.822677,60777.0,60776.0,0.0009152]
[1723253170813,1.151748,60777.0,60776.0,0.0009152]
[1723253171019,1.234748,60777.0,60776.0,0.0009152]
[1723253171895,1.235748,60777.0,60776.0,0.0009152]
[1723253172050,1.234748,60777.0,60776.0,0.0009152]
[1723253172445,1.235748,60777.0,60776.0,0.0009152]
[1723253173118,1.234748,60777.0,60776.0,0.0009152]
[1723253173250,1.151748,60777.0,60776.0,0.0009152]
[1723253173473,1.156748,60777.0,60776.0,0.0009152]
[1723253173673,1.151748,60777.0,60776.0,0.0009152]
[1723253175433,1.152748,60777.0,60776.0,0.0009152]
[1723253175571,1.151748,60777.0,60776.0,0.0009152]
[1723253175965,1.155748,60777.0,60776.0,0.0009152]
[1723253176179,1.151748,60777.0,60776.0,0.0009152]
[1723253176375,1.152748,60777.0,60776.0,0.0009152]
[1723253176838,1.151748,60777.0,60776.0,0.0009152]
[1723253177040,1.154748,60777.0,60776.0,0.0009152]
[1723253178234,1.151748,60777.0,60776.0,0.0009152]
[1723253178583,1.152748,60777.0,60776.0,0.0009152]
[1723253178798,1.67526292,60777.0,60776.0,0.0009152]
[1723253179000,2.12733392,60777.0,60776.0,0.0009152]
[1723253179198,2.12633392,60777.0,60776.0,0.0009152]
[1723253179643,2.12933392,60777.0,60776.0,0.0009152]
[1723253179818,2.12633392,60777.0,60776.0,0.0009152]
[1723253180255,2.12633392,60777.0,60776.0,0.0019152]
[1723253180256,2.13133392,60777.0,60776.0,0.0019152]
[1723253181523,2.12633392,60777.0,60776.0,0.0019152]
[1723253181860,2.13133392,60777.0,60776.0,0.0029152]
[1723253182645,2.18051702,60777.0,60776.0,0.0029152]
[1723253182844,2.56417958,60777.0,60776.0,0.0029152]
[1723253183056,1.152053,60761.0,60760.0,0.0009152]
[1723253183263,1.31586792,60761.0,60760.0,0.0009152]
[1723253183479,1.74332592,60761.0,60760.0,0.0009152]
[1723253184790,1.75315509,60761.0,60760.0,0.0009152]
[1723253185016,1.75415509,60761.0,60760.0,0.0099152]
[1723253185181,1.75315509,60761.0,60760.0,0.0109152]
[1723253185383,1.76415509,60761.0,60760.0,0.0119152]
[1723253185586,1.76415509,60761.0,60760.0,0.0019152]
[1723253185928,1.75915509,60761.0,60760.0,0.0019152]
[1723253186100,1.76915509,60761.0,60760.0,0.0029152]
[1723253188119,1.36469709,60761.0,60760.0,0.0029152]
[1723253188346,1.17788217,60761.0,60760.0,0.1448152]
[1723253188638,1.17788217,60761.0,60760.0,0.15929672]
[1723253188837,1.17788217,60761.0,60760.0,0.1448152]
[1723253189039,1.17188217,60761.0,60760.0,0.1438152]
[1723253189178,1.17188217,60761.0,60760.0,0.0019152]
[1723253189534,1.17188217,60761.0,60760.0,0.0009152]
[1723253189535,1.16788217,60761.0,60760.0,0.0009152]
[1723253189834,1.17488217,60761.0,60760.0,0.0009152]
[1723253189995,1.16188217,60761.0,60760.0,0.0009152]
[1723253190195,1.16788217,60761.0,60760.0,0.0009152]
[1723253191235,1.16788217,60761.0,60760.0,0.0762152]
[1723253191542,1.16688217,60761.0,60760.0,0.0762152]
[1723253191748,1.17488217,60761.0,60760.0,0.0772152]
[1723253191949,1.16988217,60761.0,60760.0,0.0772152]
[1723253192127,1.16188217,60761.0,60760.0,0.0762152]
[1723253192324,1.16988217,60761.0,60760.0,0.0762152]
[1723253192774,1.16488217,60761.0,60760.0,0.0762152]
[1723253193178,1.16588217,60761.0,60760.0,0.0762152]
[1723253194303,1.16588217,60761.0,60760.0,0.0009152]
[1723253194948,1.16488217,60761.0,60760.0,0.0009152]
[1723253195148,1.16188217,60761.0,60760.0,0.0009152]
[1723253195349,1.16288217,60761.0,60760.0,0.0009152]
[1723253195653,1.16588217,60761.0,60760.0,0.0009152]
[1723253201967,1.16588217,60761.0,60760.0,0.0777152]
[1723253204722,1.16488217,60761.0,60760.0,0.0777152]
[1723253204922,1.16588217,60761.0,60760.0,0.0777152]
[1723253205424,1.16288217,60761.0,60760.0,0.0777152]
[1723253205747,1.16588217,60761.0,60760.0,0.0777152]
[1723253208185,1.16488217,60761.0,60760.0,0.0777152]
[1723253208526,1.16188217,60761.0,60760.0,0.0777152]
[1723253209010,1.16388217,60761.0,60760.0,0.0777152]
[1723253209766,1.27638217,60761.0,60760.0,0.0009152]
[1723253209957,1.44019709,60761.0,60760.0,0.0009152]
[1723253210201,1.44019709,60761.0,60752.0,0.0009152]
[1723253210202,0.823002,60753.0,60752.0,0.0009152]
[1723253210401,1.52001792,60753.0,60752.0,0.0009152]
[1723253210601,1.97221892,60753.0,60752.0,0.0009152]
[1723253210928,1.243724,60752.0,60751.0,0.0009152]
[1723253211142,0.91453,60751.0,60745.0,0.0042883]
[1723253211291,1.83676892,60751.0,60745.0,0.0042883]
[1723253211498,1.90891487,60751.0,60745.0,0.0042883]
[1723253211688,2.51962687,60751.0,60745.0,0.0042883]
[1723253212414,1.563003,60749.0,60745.0,0.0042883]
[1723253212672,1.84981792,60749.0,60745.0,0.0042883]
[1723253212996,2.248174,60749.0,60745.0,0.0042883]
[1723253213254,2.238174,60749.0,60745.0,0.0042883]
[1723253213429,2.18904092,60749.0,60745.0,0.0042883]
[1723253213638,2.238174,60749.0,60745.0,0.0042883]
[1723253213978,2.238174,60749.0,60748.0,0.00324902]
[1723253213979,2.2627757,60749.0,60748.0,0.00324902]
[1723253214149,2.18904092,60749.0,60748.0,0.00324902]
[1723253214351,1.85981792,60749.0,60748.0,0.00324902]
[1723253214551,1.90893885,60749.0,60748.0,0.00324902]
[1723253214734,1.86881792,60749.0,60748.0,0.00424902]
[1723253214931,1.86381792,60749.0,60748.0,0.00324902]
[1723253215133,1.90894237,60749.0,60748.0,0.00324902]
[1723253215310,1.90894237,60749.0,60748.0,0.00424902]
[1723253215311,1.92294237,60749.0,60748.0,0.00424902]
[1723253215509,1.85981792,60749.0,60748.0,0.00324902]
[1723253215959,1.91075295,60749.0,60748.0,0.00524902]
[1723253216156,2.51444401,60749.0,60748.0,0.00424902]
[1723253217433,2.28210924,60749.0,60748.0,0.00324902]
[1723253217637,2.28210924,60749.0,60748.0,0.00424902]
[1723253217638,2.28910924,60749.0,60748.0,0.00424902]
[1723253217953,2.21597595,60749.0,60748.0,0.00516422]
[1723253218131,2.23297595,60749.0,60748.0,0.00416422]
[1723253218335,2.21897595,60749.0,60748.0,0.00416422]
[1723253218566,2.25512089,60749.0,60748.0,0.00516422]
[1723253218736,2.26912089,60749.0,60748.0,0.00516422]
[1723253219106,2.25512089,60749.0,60748.0,0.00516422]
[1723253219309,2.27512089,60749.0,60748.0,0.00516422]
[1723253219450,2.28912089,60749.0,60748.0,0.00516422]
[1723253219654,2.23997595,60749.0,60748.0,0.00516422]
[1723253219849,2.23997595,60749.0,60748.0,1e-08]
[1723253220487,1.481575,60746.0,60745.0,0.0042883]
[1723253220694,1.77838992,60746.0,60745.0,0.0042883]
[1723253220869,1.89277669,60746.0,60745.0,0.0042883]
[1723253221682,1.89677669,60746.0,60745.0,0.0042883]
[1723253222280,1.90377669,60746.0,60745.0,0.0052883]
[1723253222539,2.24301569,60746.0,60745.0,0.0052883]
[1723253222691,1.152546,60735.0,60734.0,0.1376]
[1723253222892,1.252546,60735.0,60734.0,0.1376]
[1723253223949,1.254546,60735.0,60734.0,0.1376]
[1723253224771,1.256546,60735.0,60734.0,0.1376]
[1723253225379,1.256546,60735.0,60734.0,0.15137]
[1723253226407,1.26657359,60735.0,60734.0,0.1376]
[1723253227702,1.26457359,60735.0,60734.0,0.1376]
[1723253227902,1.26657359,60735.0,60734.0,0.1376]
[1723253228122,1.26457359,60735.0,60734.0,0.1376]
[1723253228700,1.26257359,60735.0,60734.0,0.1376]
[1723253228887,1.26457359,60735.0,60734.0,0.1376]
[1723253229194,1.26657359,60735.0,60734.0,0.1376]
[1723253231203,1.26657359,60735.0,60734.0,0.1385152]
[1723253231795,1.37917359,60735.0,60734.0,0.15237672]
[1723253232600,1.37917359,60735.0,60734.0,0.1385152]
[1723253232958,1.37717359,60735.0,60734.0,0.1385152]
[1723253233734,1.96788751,60735.0,60734.0,0.0009152]
[1723253233951,2.09690584,60735.0,60734.0,0.0009152]
[1723253234117,2.61235454,60735.0,60734.0,0.0009152]
[1723253234441,2.61235454,60735.0,60726.0,0.0001]
[1723253234442,1.259202,60732.0,60726.0,0.0001]
[1723253234642,2.10695025,60732.0,60726.0,0.0001]
[1723253235185,1.97435025,60732.0,60726.0,0.0001]
[1723253235398,1.88775025,60732.0,60726.0,0.0001]
[1723253235598,1.88775025,60732.0,60731.0,0.0614]